[Event "8th Palmanova Open 2019"]
[Site "Palmanova"]
[Date "2019.12.08"]
[Round "5.4"]
[White "Lumachi, Gabriele"]
[Black "Kobal, Sasa"]
[Result "1-0"]
[ECO "B07"]
[WhiteElo "2031"]
[BlackElo "1768"]
[Annotator "NA"]
[PlyCount "77"]
[EventDate "2019.12.06"]
[EventType "swiss"]
[EventCountry "ITA"]
[SourceTitle "playchess.com"]
[Source "ChessBase"]
[SourceQuality "1"]
[TimeControl "5400+30"]

1. d4 {[%emt 0:00:22]} d6 {[%emt 0:00:00]} 2. g3 {[%emt 0:00:47]} g6 {[%emt 0:00:30]} 3. Bg2 {[%emt 0:00:19]} Bg7 {[%emt 0:00:03]} 4. e4 {[%emt 0:00:51]} Nd7 {[%emt 0:00:37]} 5. Ne2 {[%emt 0:01:01]} e5 {[%emt 0:00:16]} 6. O-O {[%emt 0:00:35]} Ngf6 {[%emt 0:00:49]} 7. Nbc3 {[%emt 0:08:15]} O-O {[%emt 0:01:12]} 8. h3 {[%emt 0:00:26]} c6 {[%emt 0:10:05]} 9. a4 {[%emt 0:00:26]} Re8 {[%emt 0:00:51]} 10. d5 {[%emt 0:17:05]} cxd5 {[%emt 0:06:49]} 11. Nxd5 {[%emt 0:00:50]} Nxd5 {[%emt 0:00:24]} 12. Qxd5 {[%emt 0:00:41]} Nf6 {[%emt 0:01:16]} 13. Qd1 {[%emt 0:02:12]} Be6 {[%emt 0:00:40]} 14. Nc3 {[%emt 0:05:07]} Qa5 {[%emt 0:04:48]} 15. Nb5 {[%emt 0:09:38]} Red8 {[%emt 0:06:13]} 16. Bd2 {[%emt 0:07:49]} Qb6 {[%emt 0:00:48]} 17. Be3 {[%emt 0:00:10]} Qc6 {[%emt 0:03:17]} 18. Nxa7 {[%emt 0:03:21]} Qa6 {[%emt 0:06:43]} 19. Nb5 {[%emt 0:02:20]} Bc4 {[%emt 0:00:20]} 20. Nc7 {[%emt 0:01:30]} Qc6 {[%emt 0:00:07]} 21. Nxa8 {[%emt 0:00:34]} Bxf1 {[%emt 0:00:08]} 22. Qxf1 {[%emt 0:03:04]} Rxa8 {[%emt 0:00:04]} 23. Qd3 {[%emt 0:01:54]} Rxa4 {[%emt 0:19:05]} 24. Rxa4 {[%emt 0:01:39]} Qxa4 {[%emt 0:00:04]} 25. Qxd6 {[%emt 0:01:18]} h5 {[%emt 0:02:19]} 26. Qb8+ {[%emt 0:02:18]} Kh7 {[%emt 0:00:13]} 27. Qxb7 {[%emt 0:01:46]} Qxc2 {[%emt 0:00:39]} 28. b4 {[%emt 0:06:00]} Qb1+ {[%emt 0:04:05]} 29. Kh2 {[%emt 0:01:10]} Qa2 {[%emt 0:00:39]} 30. b5 {[%emt 0:03:52]} Bh6 {[%emt 0:01:37]} 31. Qa7 {[%emt 0:00:40]} Qc4 {[%emt 0:03:05]} 32. Qc5 {[%emt 0:07:04]} Qa2 {[%emt 0:04:34]} 33. Bxh6 {[%emt 0:00:54]} Kxh6 {[%emt 0:02:49]} 34. Qxe5 {[%emt 0:02:26]} Kg7 {[%emt 0:01:27]} 35. Qd4 {[%emt 0:00:45]} Qb1 {[%emt 0:01:56]} 36. b6 {[%emt 0:00:56]} h4 {[%emt 0:01:04]} 37. e5 {[%emt 0:00:58]} hxg3+ {[%emt 0:00:28]} 38. fxg3 {[%emt 0:00:18]} Nh5 {[%emt 0:02:07]} 39. g4 {[%emt 0:03:12]} 1-0

[Event "8th Palmanova Open 2019"]
[Site "Palmanova"]
[Date "2019.12.08"]
[Round "5.6"]
[White "Bisaro, Andrea"]
[Black "Trussevich, Sergey"]
[Result "0-1"]
[ECO "A60"]
[WhiteElo "1825"]
[BlackElo "2275"]
[Annotator "NA"]
[PlyCount "111"]
[EventDate "2019.12.06"]
[EventType "swiss"]
[EventCountry "ITA"]
[SourceTitle "playchess.com"]
[Source "ChessBase"]
[SourceQuality "1"]
[TimeControl "5400+30"]

1. d4 {[%emt 0:00:00]} Nf6 {[%emt 0:04:36]} 2. c4 {[%emt 0:00:00]} e6 {[%emt 0:00:05]} 3. Nf3 {[%emt 0:00:00]} c5 {[%emt 0:00:37]} 4. d5 {[%emt 0:00:14]} exd5 {[%emt 0:00:04]} 5. cxd5 {[%emt 0:00:13]} d6 {[%emt 0:00:35]} 6. Nc3 {[%emt 0:00:35]} Be7 {[%emt 0:00:18]} 7. e4 {[%emt 0:02:36]} a6 {[%emt 0:00:06]} 8. a4 {[%emt 0:00:21]} Nbd7 {[%emt 0:00:04]} 9. a5 {[%emt 0:00:57]} Nf8 {[%emt 0:01:07]} 10. h3 {[%emt 0:01:07]} Ng6 {[%emt 0:00:07]} 11. Bd3 {[%emt 0:02:22]} O-O {[%emt 0:00:33]} 12. O-O {[%emt 0:05:09]} Nd7 {[%emt 0:00:27]} 13. Re1 {[%emt 0:02:58]} Bf6 {[%emt 0:00:19]} 14. Qc2 {[%emt 0:05:09]} Re8 {[%emt 0:00:38]} 15. Bd2 {[%emt 0:02:20]} Nde5 {[%emt 0:07:54]} 16. Nxe5 {[%emt 0:06:38]} Bxe5 {[%emt 0:00:33]} 17. Ne2 {[%emt 0:06:18]} Qh4 {[%emt 0:02:59]} 18. Ra3 {[%emt 0:25:16]} Bxh3 {[%emt 0:40:13]} 19. gxh3 {[%emt 0:16:09]} Qxh3 {[%emt 0:00:52]} 20. Ng3 {[%emt 0:01:21]} Bxg3 {[%emt 0:01:09]} 21. fxg3 {[%emt 0:00:14]} Qxg3+ {[%emt 0:01:16]} 22. Kh1 {[%emt 0:05:12]} Qh3+ {[%emt 0:13:48]} 23. Kg1 {[%emt 0:00:22]} Nh4 {[%emt 0:18:48]} 24. Bf1 {[%emt 0:00:38]} Nf3+ {[%emt 0:00:35]} 25. Rxf3 {[%emt 0:00:06]} Qxf3 {[%emt 0:00:01]} 26. Bg2 {[%emt 0:00:07]} Qg4 {[%emt 0:01:24]} 27. Rf1 {[%emt 0:06:31]} h5 {[%emt 0:00:11]} 28. Rf4 {[%emt 0:00:14]} Qg6 {[%emt 0:00:45]} 29. Rf5 {[%emt 0:03:07]} f6 {[%emt 0:01:54]} 30. Qd3 {[%emt 0:01:56]} Re5 {[%emt 0:00:49]} 31. Rxe5 {[%emt 0:01:33]} fxe5 {[%emt 0:00:34]} 32. Qh3 {[%emt 0:02:43]} Rf8 {[%emt 0:01:16]} 33. Qe6+ {[%emt 0:01:26]} Kh7 {[%emt 0:00:12]} 34. Qh3 {[%emt 0:01:21]} Qf7 {[%emt 0:01:10]} 35. Be3 {[%emt 0:00:16]} g6 {[%emt 0:00:28]} 36. Qh4 {[%emt 0:01:25]} Kg7 {[%emt 0:00:54]} 37. Qg5 {[%emt 0:00:15]} Qf6 {[%emt 0:00:26]} 38. Qh6+ {[%emt 0:00:16]} Kf7 {[%emt 0:00:18]} 39. Bh3 {[%emt 0:01:29]} Rh8 {[%emt 0:00:47]} 40. Be6+ {[%emt 0:00:04]} Ke7 {[%emt 0:00:28]} 41. Qg5 {[%emt 0:00:09]} Rf8 {[%emt 0:00:33]} 42. Qxf6+ {[%emt 0:00:30]} Kxf6 {[%emt 0:00:12]} 43. Kg2 {[%emt 0:00:06]} g5 {[%emt 0:00:13]} 44. Bf5 {[%emt 0:00:14]} Rb8 {[%emt 0:01:03]} 45. Bd2 {[%emt 0:01:01]} b6 {[%emt 0:00:28]} 46. axb6 {[%emt 0:00:19]} Rxb6 {[%emt 0:00:01]} 47. Bc3 {[%emt 0:00:02]} a5 {[%emt 0:00:57]} 48. Bd7 {[%emt 0:00:09]} Rb4 {[%emt 0:00:40]} 49. Bxb4 {[%emt 0:00:33]} axb4 {[%emt 0:00:28]} 50. Bb5 {[%emt 0:00:14]} g4 {[%emt 0:00:08]} 51. Be2 {[%emt 0:01:14]} Kg5 {[%emt 0:00:11]} 52. b3 {[%emt 0:00:54]} Kf4 {[%emt 0:00:26]} 53. Bd3 {[%emt 0:00:55]} Ke3 {[%emt 0:00:25]} 54. Bc2 {[%emt 0:00:14]} Kd2 {[%emt 0:00:35]} 55. Bb1 {[%emt 0:00:20]} h4 {[%emt 0:00:27]} 56. Kh2 {[%emt 0:00:05]} 0-1

[Event "8th Palmanova Open 2019"]
[Site "Palmanova"]
[Date "2019.12.08"]
[Round "5.7"]
[White "Gregoric, Andraz"]
[Black "Laco, Giuseppe"]
[Result "1-0"]
[ECO "A34"]
[WhiteElo "1509"]
[BlackElo "2022"]
[Annotator "NA"]
[PlyCount "135"]
[EventDate "2019.12.06"]
[EventType "swiss"]
[EventCountry "ITA"]
[SourceTitle "playchess.com"]
[Source "ChessBase"]
[SourceQuality "1"]
[TimeControl "5400+30"]

1. e4 {[%emt 0:00:00]} c5 {[%emt 0:00:00]} 2. Nf3 {[%emt 0:00:00]} e6 {[%emt 0:00:00]} 3. c4 {[%emt 0:00:00]} b6 {[%emt 0:00:52]} 4. Nc3 {[%emt 0:00:15]} Bb7 {[%emt 0:00:14]} 5. Be2 {[%emt 0:00:21]} d6 {[%emt 0:02:37]} 6. d4 {[%emt 0:03:39]} Nd7 {[%emt 0:00:43]} 7. O-O {[%emt 0:03:05]} Be7 {[%emt 0:01:09]} 8. Qa4 {[%emt 0:21:12]} a6 {[%emt 0:01:41]} 9. Rd1 {[%emt 0:02:55]} Qc7 {[%emt 0:04:16]} 10. Be3 {[%emt 0:03:10]} Ngf6 {[%emt 0:01:53]} 11. e5 {[%emt 0:04:26]} Bc6 {[%emt 0:01:09]} 12. exd6 {[%emt 0:01:27]} Bxa4 {[%emt 0:07:55]} 13. dxc7 {[%emt 0:00:09]} Bxd1 {[%emt 0:00:24]} 14. Rxd1 {[%emt 0:00:17]} cxd4 {[%emt 0:01:58]} 15. Bxd4 {[%emt 0:05:02]} Rc8 {[%emt 0:03:59]} 16. Ne5 {[%emt 0:03:27]} Bc5 {[%emt 0:01:59]} 17. Nxd7 {[%emt 0:01:13]} Bxd4 {[%emt 0:00:34]} 18. Nxf6+ {[%emt 0:00:38]} Bxf6 {[%emt 0:00:03]} 19. Rd6 {[%emt 0:00:12]} Bxc3 {[%emt 0:01:22]} 20. bxc3 {[%emt 0:00:05]} Rxc7 {[%emt 0:00:31]} 21. Rxb6 {[%emt 0:00:18]} Ke7 {[%emt 0:00:23]} 22. Kf1 {[%emt 0:06:27]} a5 {[%emt 0:00:57]} 23. a4 {[%emt 0:01:26]} Rhc8 {[%emt 0:01:38]} 24. Rb5 {[%emt 0:04:31]} Rc5 {[%emt 0:00:08]} 25. Rb3 {[%emt 0:00:07]} g6 {[%emt 0:00:34]} 26. Ke1 {[%emt 0:00:07]} Rd8 {[%emt 0:00:25]} 27. Rb2 {[%emt 0:06:46]} h5 {[%emt 0:00:22]} 28. f3 {[%emt 0:00:49]} f5 {[%emt 0:00:37]} 29. f4 {[%emt 0:00:42]} Rd6 {[%emt 0:00:51]} 30. Kf2 {[%emt 0:04:52]} Kf6 {[%emt 0:00:37]} 31. h4 {[%emt 0:00:05]} e5 {[%emt 0:00:15]} 32. g3 {[%emt 0:01:26]} e4 {[%emt 0:06:22]} 33. Ke3 {[%emt 0:00:48]} Ke7 {[%emt 0:01:51]} 34. Rb7+ {[%emt 0:05:24]} Kd8 {[%emt 0:00:03]} 35. Rb8+ {[%emt 0:08:08]} Kc7 {[%emt 0:00:02]} 36. Rg8 {[%emt 0:00:18]} Kb7 {[%emt 0:00:53]} 37. Re8 {[%emt 0:01:01]} Rc8 {[%emt 0:04:56]} 38. Re5 {[%emt 0:00:13]} Ra6 {[%emt 0:01:23]} 39. Re7+ {[%emt 0:01:33]} Rc7 {[%emt 0:00:40]} 40. Re5 {[%emt 0:00:09]} Ra8 {[%emt 0:01:48]} 41. Kd4 {[%emt 0:03:00]} Rd7+ {[%emt 0:01:45]} 42. Rd5 {[%emt 0:00:45]} Rad8 {[%emt 0:00:57]} 43. Ke5 {[%emt 0:00:39]} Re8+ {[%emt 0:08:22]} 44. Kf6 {[%emt 0:01:00]} Rxd5 {[%emt 0:04:43]} 45. cxd5 {[%emt 0:00:03]} Kc7 {[%emt 0:01:06]} 46. Kf7 {[%emt 0:01:00]} Rd8 {[%emt 0:00:39]} 47. c4 {[%emt 0:00:59]} Rd6 {[%emt 0:00:23]} 48. Ke7 {[%emt 0:00:36]} Rd8 {[%emt 0:04:50]} 49. Ke6 {[%emt 0:00:54]} Kb6 {[%emt 0:01:53]} 50. Ke7 {[%emt 0:00:10]} Ra8 {[%emt 0:04:37]} 51. Kf7 {[%emt 0:01:04]} Kc5 {[%emt 0:01:21]} 52. Kxg6 {[%emt 0:00:07]} Rf8 {[%emt 0:03:10]} 53. Kg7 {[%emt 0:00:38]} Rb8 {[%emt 0:00:36]} 54. Kf6 {[%emt 0:00:05]} Rb2 {[%emt 0:04:46]} 55. Bxh5 {[%emt 0:00:08]} e3 {[%emt 0:00:02]} 56. Kxf5 {[%emt 0:00:09]} e2 {[%emt 0:00:23]} 57. Bxe2 {[%emt 0:00:07]} Rxe2 {[%emt 0:00:01]} 58. h5 {[%emt 0:01:07]} Kxc4 {[%emt 0:00:08]} 59. d6 {[%emt 0:00:11]} Rd2 {[%emt 0:01:06]} 60. Ke6 {[%emt 0:01:37]} Kc5 {[%emt 0:00:24]} 61. d7 {[%emt 0:00:07]} Kc6 {[%emt 0:00:30]} 62. g4 {[%emt 0:00:36]} Re2+ {[%emt 0:02:31]} 63. Kf6 {[%emt 0:00:15]} Kxd7 {[%emt 0:00:05]} 64. h6 {[%emt 0:01:28]} Re4 {[%emt 0:04:19]} 65. Kf5 {[%emt 0:01:12]} Re8 {[%emt 0:03:08]} 66. h7 {[%emt 0:01:21]} Ke7 {[%emt 0:00:31]} 67. Kg6 {[%emt 0:00:14]} Rf8 {[%emt 0:00:27]} 68. g5 {[%emt 0:00:24]} 1-0

[Event "8th Palmanova Open 2019"]
[Site "Palmanova"]
[Date "2019.12.08"]
[Round "5.8"]
[White "Savanovic, Maksim"]
[Black "Hercegovac, Neven"]
[Result "0-1"]
[ECO "A48"]
[WhiteElo "1799"]
[BlackElo "2003"]
[Annotator "NA"]
[PlyCount "66"]
[EventDate "2019.12.06"]
[EventType "swiss"]
[EventCountry "ITA"]
[SourceTitle "playchess.com"]
[Source "ChessBase"]
[SourceQuality "1"]
[TimeControl "5400+30"]

1. d4 {[%emt 0:00:00]} Nf6 {[%emt 0:00:00]} 2. Bf4 {[%emt 0:00:00]} g6 {[%emt 0:00:00]} 3. e3 {[%emt 0:00:00]} Bg7 {[%emt 0:00:01]} 4. Nf3 {[%emt 0:00:00]} O-O {[%emt 0:00:25]} 5. Be2 {[%emt 0:00:00]} b6 {[%emt 0:00:36]} 6. O-O {[%emt 0:00:00]} Bb7 {[%emt 0:00:15]} 7. c3 {[%emt 0:00:00]} d6 {[%emt 0:00:10]} 8. h3 {[%emt 0:00:00]} Nbd7 {[%emt 0:00:07]} 9. a4 {[%emt 0:00:02]} a6 {[%emt 0:00:38]} 10. Nbd2 {[%emt 0:00:02]} c5 {[%emt 0:00:09]} 11. Bh2 {[%emt 0:00:03]} Rc8 {[%emt 0:00:31]} 12. Bd3 {[%emt 0:00:03]} Rc7 {[%emt 0:00:37]} 13. Qe2 {[%emt 0:00:02]} Qa8 {[%emt 0:00:09]} 14. e4 {[%emt 0:00:04]} Rcc8 {[%emt 0:00:38]} 15. e5 {[%emt 0:01:11]} dxe5 {[%emt 0:06:09]} 16. dxe5 {[%emt 0:00:04]} Nd5 {[%emt 0:00:58]} 17. e6 {[%emt 0:00:18]} N7f6 {[%emt 0:00:26]} 18. exf7+ {[%emt 0:00:18]} Rxf7 {[%emt 0:00:16]} 19. Ng5 {[%emt 0:01:29]} Rff8 {[%emt 0:01:44]} 20. Qe6+ {[%emt 0:00:23]} Kh8 {[%emt 0:00:12]} 21. Nf7+ {[%emt 0:02:02]} Rxf7 {[%emt 0:00:23]} 22. Qxf7 {[%emt 0:00:02]} Rd8 {[%emt 0:01:23]} 23. Rfe1 {[%emt 0:12:49]} Bc8 {[%emt 0:05:00]} 24. Rxe7 {[%emt 0:16:54]} Nxe7 {[%emt 0:00:17]} 25. Qxe7 {[%emt 0:00:21]} Rxd3 {[%emt 0:00:31]} 26. Be5 {[%emt 0:00:49]} Rd7 {[%emt 0:01:32]} 27. Qe6 {[%emt 0:01:04]} Rxd2 {[%emt 0:00:19]} 28. Qe7 {[%emt 0:00:07]} Qc6 {[%emt 0:00:57]} 29. Bxf6 {[%emt 0:00:30]} Qxf6 {[%emt 0:00:16]} 30. Qe8+ {[%emt 0:00:01]} Qf8 {[%emt 0:00:20]} 31. Qe3 {[%emt 1:06:52]} Rxb2 {[%emt 0:01:15]} 32. Rd1 {[%emt 0:00:00]} Bf5 {[%emt 0:00:29]} 33. Qg5 {[%emt 0:00:00]} Rb1 {[%emt 0:00:20]} 0-1

[Event "8th Palmanova Open 2019"]
[Site "Palmanova"]
[Date "2019.12.08"]
[Round "5.9"]
[White "Herega, Nejc"]
[Black "Garau, Francesca"]
[Result "1-0"]
[ECO "E67"]
[WhiteElo "1642"]
[BlackElo "1628"]
[Annotator "NA"]
[PlyCount "77"]
[EventDate "2019.12.06"]
[EventType "swiss"]
[EventCountry "ITA"]
[SourceTitle "playchess.com"]
[Source "ChessBase"]
[SourceQuality "1"]
[TimeControl "5400+30"]

1. d4 {[%emt 0:00:00]} Nf6 {[%emt 0:00:00]} 2. Nf3 {[%emt 0:00:37]} g6 {[%emt 0:00:53]} 3. g3 {[%emt 0:02:01]} Bg7 {[%emt 0:00:23]} 4. Bg2 {[%emt 0:00:31]} O-O {[%emt 0:00:27]} 5. O-O {[%emt 0:00:16]} d6 {[%emt 0:01:18]} 6. c4 {[%emt 0:02:14]} Nbd7 {[%emt 0:01:27]} 7. Nc3 {[%emt 0:01:11]} e5 {[%emt 0:01:09]} 8. e3 {[%emt 0:02:30]} c6 {[%emt 0:02:27]} 9. b3 {[%emt 0:08:10]} e4 {[%emt 0:02:50]} 10. Nd2 {[%emt 0:01:10]} d5 {[%emt 0:00:55]} 11. cxd5 {[%emt 0:04:02]} cxd5 {[%emt 0:00:30]} 12. f3 {[%emt 0:00:28]} exf3 {[%emt 0:02:05]} 13. Qxf3 {[%emt 0:01:45]} Nb6 {[%emt 0:02:00]} 14. Ba3 {[%emt 0:04:29]} Re8 {[%emt 0:01:12]} 15. e4 {[%emt 0:08:23]} Be6 {[%emt 0:32:20]} 16. e5 {[%emt 0:07:01]} Nfd7 {[%emt 0:02:17]} 17. Nb5 {[%emt 0:03:59]} Bf8 {[%emt 0:01:43]} 18. Bd6 {[%emt 0:06:26]} Rc8 {[%emt 0:06:07]} 19. Qe3 {[%emt 0:10:01]} a6 {[%emt 0:01:52]} 20. Bxf8 {[%emt 0:01:33]} Rxf8 {[%emt 0:01:35]} 21. Nd6 {[%emt 0:00:28]} Rc7 {[%emt 0:01:51]} 22. Qh6 {[%emt 0:03:04]} Nc8 {[%emt 0:03:49]} 23. Nf3 {[%emt 0:04:45]} f6 {[%emt 0:02:22]} 24. Nh4 {[%emt 0:04:09]} Ndb6 {[%emt 0:05:51]} 25. Nxc8 {[%emt 0:01:13]} Nxc8 {[%emt 0:01:00]} 26. Qe3 {[%emt 0:02:56]} Nb6 {[%emt 0:07:15]} 27. Rae1 {[%emt 0:02:18]} Rc6 {[%emt 0:02:39]} 28. Nf3 {[%emt 0:02:17]} Bf5 {[%emt 0:08:41]} 29. Rc1 {[%emt 0:02:45]} Rxc1 {[%emt 0:01:46]} 30. Rxc1 {[%emt 0:01:02]} Be4 {[%emt 0:01:08]} 31. exf6 {[%emt 0:03:19]} Rxf6 {[%emt 0:02:17]} 32. Ne5 {[%emt 0:00:54]} Bxg2 {[%emt 0:00:25]} 33. Kxg2 {[%emt 0:00:01]} Nd7 {[%emt 0:00:31]} 34. Ng4 {[%emt 0:01:24]} Rd6 {[%emt 0:01:04]} 35. Rf1 {[%emt 0:05:16]} Rc6 {[%emt 0:01:00]} 36. Nh6+ {[%emt 0:00:53]} Kg7 {[%emt 0:00:37]} 37. Rf7+ {[%emt 0:00:07]} Kh8 {[%emt 0:00:04]} 38. Re7 {[%emt 0:00:35]} Rc2+ {[%emt 0:01:44]} 39. Kh3 {[%emt 0:00:28]} 1-0